Departmental family,Entity,Date Paid,Expense type,Expense Area,Supplier,Transaction Number, Amount , Description ,Supplier Type,Expenditure Type
UK Statistics Authority,Office for National Statistics,01-Nov-18,IT Management and Change,Digital Services and Technology,Comparex UK Ltd,109711,"11,884.61", Information Management Services,Large,Programme
UK Statistics Authority,Office for National Statistics,01-Nov-18,Software Pool 4 Year,Digital Services and Technology,Comparex UK Ltd,109711,"18,369.37", Information Management Services,Large,Programme
UK Statistics Authority,Office for National Statistics,01-Nov-18,Consultancy,Economic Statistics Transformation,Techmodal,109716,"10,560.00", Information Management Services,Large,Programme
UK Statistics Authority,Office for National Statistics,01-Nov-18,Contractors,Economic Statistics Transformation,Techmodal,109716,"15,600.00", Information Management Services,Large,Programme
UK Statistics Authority,Office for National Statistics,01-Nov-18,Consultancy,"Public, Population and Policy - Operations",Gowling WLG (UK) LLP,109717,"52,861.32", Legal Services for Census Planning,Large,Programme
UK Statistics Authority,Office for National Statistics,01-Nov-18,Non-IT Contractual Payments,"Public, Population and Policy - Operations",Gowling WLG (UK) LLP,109717,"5,571.96", Legal Services for Census Planning,Large,Programme
UK Statistics Authority,Office for National Statistics,01-Nov-18,IT Contractual Services,Digital Services and Technology,Cloudwick Technologies UK,109719,"36,007.25", G Cloud 9 Services,SME,Programme
UK Statistics Authority,Office for National Statistics,01-Nov-18,Contractors,Economic Statistics Transformation,Malikshaw Interim & Executive,109720,"12,846.48", Information Management Services,SME,Programme
UK Statistics Authority,Office for National Statistics,01-Nov-18,Contractors,"Methods, Data and Research",Malikshaw Interim & Executive,109720,"12,966.48", Information Management Services,SME,Programme
UK Statistics Authority,Office for National Statistics,01-Nov-18,Furniture < 2K Per Item,Digital Services and Technology,Gresham Office Furniture Limited,109721,"29,038.94", Provision and Installation of Furniture ,SME,Programme
UK Statistics Authority,Office for National Statistics,01-Nov-18,Furniture > 2K Per Item,Digital Services and Technology,Gresham Office Furniture Limited,109721,"1,440.00", Provision and Installation of Furniture ,SME,Programme
UK Statistics Authority,Office for National Statistics,01-Nov-18,Furniture > 2K Per Item,People and Business Services,Gresham Office Furniture Limited,109721,"6,652.80", Provision and Installation of Furniture ,SME,Programme
UK Statistics Authority,Office for National Statistics,01-Nov-18,Office Furniture,Digital Services and Technology,Gresham Office Furniture Limited,109721,"24,096.60", Provision and Installation of Furniture ,SME,Programme
UK Statistics Authority,Office for National Statistics,01-Nov-18,Surveys,Public Policy Analysis,Kantar Public,109725,"425,655.94", Statistical Services,SME,Programme
UK Statistics Authority,Office for National Statistics,01-Nov-18,Contractors Travel,Policy and Communication,Swirrl IT Ltd,109729,"1,098.05", Information Management Services,SME,Programme
UK Statistics Authority,Office for National Statistics,01-Nov-18,IT Contractual Services,Policy and Communication,Swirrl IT Ltd,109729,"69,480.00", Information Management Services,SME,Programme
UK Statistics Authority,Office for National Statistics,01-Nov-18,Contractors,Economic Statistics Transformation,Concept Information Technology Ltd T/A Concept Resourcing,109733,"4,872.59", Information Management Services,Large,Programme
UK Statistics Authority,Office for National Statistics,01-Nov-18,Short-Term Contract and Agency Staff - Full Cost,Economic Statistics Transformation,Concept Information Technology Ltd T/A Concept Resourcing,109733,"6,741.34", Information Management Services,Large,Programme
UK Statistics Authority,Office for National Statistics,01-Nov-18,Short-Term Contract and Agency Staff - Full Cost,Economic Statistics Transformation,Concept Information Technology Ltd T/A Concept Resourcing,109733,"4,957.26", Information Management Services,Large,Programme
UK Statistics Authority,Office for National Statistics,01-Nov-18,Short-Term Contract and Agency Staff - Full Cost,"Methods, Data and Research",Concept Information Technology Ltd T/A Concept Resourcing,109733,"4,946.00", Information Management Services,Large,Programme
UK Statistics Authority,Office for National Statistics,01-Nov-18,Short-Term Contract and Agency Staff - Full Cost,National Accounts and Economic Statistics,Concept Information Technology Ltd T/A Concept Resourcing,109733,"12,201.01", Information Management Services,Large,Programme
UK Statistics Authority,Office for National Statistics,01-Nov-18,Short-Term Contract and Agency Staff - Full Cost,Public Policy Analysis,Concept Information Technology Ltd T/A Concept Resourcing,109733,"8,726.92", Information Management Services,Large,Programme
UK Statistics Authority,Office for National Statistics,01-Nov-18,Travel and Subsistence,"Finance, Planning and Performance",Corporate Travel Management ,109738,"58,318.85", Travel and Accommodation Booking Service ,SME,Programme
UK Statistics Authority,Office for National Statistics,01-Nov-18,Consultancy,"Public, Population and Policy - Transformation",Deloitte,109745,"87,480.00", Information Management Services,Large,Programme
UK Statistics Authority,Office for National Statistics,01-Nov-18,Consultancy,"Public, Population and Policy - Transformation",Deloitte,109745,"664,278.00", Information Management Services,Large,Programme
UK Statistics Authority,Office for National Statistics,01-Nov-18,Consultancy,"Public, Population and Policy - Transformation",Deloitte,109745,"35,040.00", Information Management Services,Large,Programme
UK Statistics Authority,Office for National Statistics,01-Nov-18,IT Contractual Services,Digital Services and Technology,QA Ltd,109746,"333,294.00", Information Management Services,Large,Programme
UK Statistics Authority,Office for National Statistics,01-Nov-18,Contractors,Economic Statistics Transformation,Parity Resources Limited,109751,"24,443.69", Information Management Services,Large,Programme
UK Statistics Authority,Office for National Statistics,01-Nov-18,Contractors,People and Business Services,Parity Resources Limited,109751,592.32, Information Management Services,Large,Programme
UK Statistics Authority,Office for National Statistics,01-Nov-18,Contractors,"Public, Population and Policy - Operations",Parity Resources Limited,109751,"8,891.10", Information Management Services,Large,Programme
UK Statistics Authority,Office for National Statistics,01-Nov-18,IT Contractual Services,Digital Services and Technology,Parity Resources Limited,109751,"1,248.00", Information Management Services,Large,Programme
UK Statistics Authority,Office for National Statistics,01-Nov-18,Short-Term Contract and Agency Staff - Full Cost,National Accounts and Economic Statistics,Parity Resources Limited,109751,"3,793.98", Information Management Services,Large,Programme
UK Statistics Authority,Office for National Statistics,02-Nov-18,Research Consultancy,"Public, Population and Policy - Transformation",Kantar Public,110372,"82,437.60", Statistical Services,SME,Programme
UK Statistics Authority,Office for National Statistics,02-Nov-18,Contractors Travel,Policy and Communication,E Synergy Solutions,110374,99.12, Information Management Services ,SME,Programme
UK Statistics Authority,Office for National Statistics,02-Nov-18,ICT Outsourcing and Maintenance/Support,Digital Services and Technology,E Synergy Solutions,110374,"6,300.00", Information Management Services ,SME,Programme
UK Statistics Authority,Office for National Statistics,02-Nov-18,IT Contractual Services,Digital Services and Technology,E Synergy Solutions,110374,"13,200.00", Information Management Services ,SME,Programme
UK Statistics Authority,Office for National Statistics,02-Nov-18,IT Contractual Services,Digital Services and Technology,E Synergy Solutions,110374,"6,270.00", Information Management Services ,SME,Programme
UK Statistics Authority,Office for National Statistics,02-Nov-18,IT Contractual Services,Digital Services and Technology,E Synergy Solutions,110374,"15,120.00", Information Management Services ,SME,Programme
UK Statistics Authority,Office for National Statistics,02-Nov-18,IT Contractual Services,Digital Services and Technology,E Synergy Solutions,110374,"153,289.50", Information Management Services ,SME,Programme
UK Statistics Authority,Office for National Statistics,02-Nov-18,IT Contractual Services,Digital Services and Technology,E Synergy Solutions,110374,"16,200.00", Information Management Services ,SME,Programme
UK Statistics Authority,Office for National Statistics,02-Nov-18,Incentive Payments,"Public, Population and Policy - Operations",NatCen Social Research,110375,"13,374.81", Statistical Services,Large,Programme
UK Statistics Authority,Office for National Statistics,02-Nov-18,Surveys,"Public, Population and Policy - Operations",Natcen Social Research,110375,"237,186.90", Survey Incentive Vouchers,Large,Programme
UK Statistics Authority,Office for National Statistics,02-Nov-18,Telecommunications,Digital Services and Technology,BT Global Services,110383,"22,632.00", Information Management Services ,Large,Programme
UK Statistics Authority,Office for National Statistics,02-Nov-18,Telecommunications,"Public, Population and Policy - Operations",BT Global Services,110383,"7,633.37", Information Management Services,Large,Programme
UK Statistics Authority,Office for National Statistics,02-Nov-18,Training and Development,Population and Public Policy - Director General,Oxford Said Business School,110384,"25,000.00", Leadership Training,SME,Programme
UK Statistics Authority,Office for National Statistics,02-Nov-18,Consultancy,"Public, Population and Policy - Transformation",Deloitte,110387,"178,531.20", Information Management Services,Large,Programme
UK Statistics Authority,Office for National Statistics,02-Nov-18,IT Contractual Services,Digital Services and Technology,QA Ltd,110388,"140,649.00", Information Management Services,Large,Programme
UK Statistics Authority,Office for National Statistics,06-Nov-18,Research Consultancy,National Accounts and Economic Statistics,Kantar Public,110712,"3,875.09", Statistical Services,SME,Programme
UK Statistics Authority,Office for National Statistics,06-Nov-18,Surveys,National Accounts and Economic Statistics,Kantar Public,110712,"1,704.32", Statistical Services,SME,Programme
UK Statistics Authority,Office for National Statistics,06-Nov-18,Surveys,National Accounts and Economic Statistics,Kantar Public,110712,"188,899.49", Statistical Services,SME,Programme
UK Statistics Authority,Office for National Statistics,06-Nov-18,Telecommunications,Digital Services and Technology,BT Global Services,110722,"30,683.15", Information Management Services ,Large,Programme
UK Statistics Authority,Office for National Statistics,06-Nov-18,Training and Development,Digital Services and Technology,Capita Business Services Ltd,110723,"26,213.48", Risk Management Training,Large,Programme
UK Statistics Authority,Office for National Statistics,06-Nov-18,IT Management and Change,Digital Services and Technology,Centerprise International Ltd,110728,"54,378.00", Computer Hardware,Large,Programme
UK Statistics Authority,Office for National Statistics,06-Nov-18,ICT Outsourcing and Maintenance/Support,Digital Services and Technology,Computacenter (UK) Limited,110738,"38,333.26", Information Management Services ,Large,Programme
UK Statistics Authority,Office for National Statistics,06-Nov-18,ICT Software,Digital Services and Technology,Computacenter (UK) Limited,110738,935.22, Information Management Services ,Large,Programme
UK Statistics Authority,Office for National Statistics,06-Nov-18,IT Purchases > 2K,Digital Services and Technology,Computacenter (UK) Limited,110738,"260,916.86", Information Management Services ,Large,Programme
UK Statistics Authority,Office for National Statistics,06-Nov-18,Fast Stream Recruitment,"Public, Population and Policy - Transformation",Cabinet Office,110743,"25,313.03", HR Expert Services,Large,Programme
UK Statistics Authority,Office for National Statistics,06-Nov-18,ICT Outsourcing and Maintenance/Support,Digital Services and Technology,Cabinet Office,110743,"17,770.56", HR Expert Services,Large,Programme
UK Statistics Authority,Office for National Statistics,06-Nov-18,Training and Development - Professional Membership Fees,People and Business Services,Cabinet Office,110743,"16,818.00", HR Expert Services,Large,Programme
UK Statistics Authority,Office for National Statistics,07-Nov-18,Surveys,Public Policy Analysis,Kantar Public,110749,"444,932.34", Statistical Services,SME,Programme
UK Statistics Authority,Office for National Statistics,07-Nov-18,Incentive Payments,"Public, Population and Policy - Operations",Park Retail Ltd,110753,"30,172.05", Social Surveys Incentive Vouchers,Large,Programme
UK Statistics Authority,Office for National Statistics,07-Nov-18,Travel and Subsistence,"Finance, Planning and Performance",Corporate Travel Management ,110757,"60,750.49", Travel and Accommodation Booking Service ,SME,Programme
UK Statistics Authority,Office for National Statistics,07-Nov-18,Surveys,"Public, Population and Policy - Operations",NISRA,110760,"117,297.82", Statistical Services,Large,Programme
UK Statistics Authority,Office for National Statistics,07-Nov-18,IT Contractual Services,Digital Services and Technology,Methods Business & Digital Technology Ltd,110761,"113,130.00", Information Management Services,Large,Programme
UK Statistics Authority,Office for National Statistics,07-Nov-18,IT Contractual Services,Digital Services and Technology,Methods Business & Digital Technology Ltd,110761,"78,750.00", Information Management Services,Large,Programme
UK Statistics Authority,Office for National Statistics,07-Nov-18,IT Contractual Services,Digital Services and Technology,Methods Business & Digital Technology Ltd,110761,"75,150.00", Information Management Services,Large,Programme
UK Statistics Authority,Office for National Statistics,07-Nov-18,IT Contractual Services,Digital Services and Technology,Methods Business & Digital Technology Ltd,110761,"22,050.00", Information Management Services,Large,Programme
UK Statistics Authority,Office for National Statistics,07-Nov-18,IT Contractual Services,Digital Services and Technology,Methods Business & Digital Technology Ltd,110761,"70,410.00", Information Management Services,Large,Programme
UK Statistics Authority,Office for National Statistics,07-Nov-18,Contractors,Digital Services and Technology,LA International,110762,"21,077.53", Information Management Services,SME,Programme
UK Statistics Authority,Office for National Statistics,07-Nov-18,Contractors,"Methods, Data and Research",LA International,110762,"3,748.50", Information Management Services,SME,Programme
UK Statistics Authority,Office for National Statistics,07-Nov-18,Contractors,National Accounts and Economic Statistics,LA International,110762,"9,098.96", Information Management Services,SME,Programme
UK Statistics Authority,Office for National Statistics,07-Nov-18,Contractors,Policy and Communication,LA International,110762,"1,537.87", Information Management Services,SME,Programme
UK Statistics Authority,Office for National Statistics,07-Nov-18,ICT Outsourcing and Maintenance/Support,Policy and Communication,LA International,110762,"10,572.66", Information Management Services,SME,Programme
UK Statistics Authority,Office for National Statistics,07-Nov-18,IT Contractual Services,Digital Services and Technology,Equiniti-TopLevel,110779,"28,882.56", Information Management Services ,SME,Programme
UK Statistics Authority,Office for National Statistics,08-Nov-18,Telecommunications,Digital Services and Technology,Vodafone Corporate Ltd,111160,"35,970.00", Information Management Services,Large,Programme
UK Statistics Authority,Office for National Statistics,08-Nov-18,ICT Outsourcing and Maintenance/Support,Digital Services and Technology,SCC,111168,"21,369.02", Information Management Services,Large,Programme
UK Statistics Authority,Office for National Statistics,08-Nov-18,ICT Software,"Finance, Planning and Performance",SCC,111168,"154,286.88", Information Management Services,Large,Programme
UK Statistics Authority,Office for National Statistics,09-Nov-18,ICT Outsourcing and Maintenance/Support,Digital Services and Technology,Crown Hosting Data Centres Limited,111405,"40,414.18", Cloud Services,SME,Programme
UK Statistics Authority,Office for National Statistics,09-Nov-18,ICT Outsourcing and Maintenance/Support,Digital Services and Technology,Crown Hosting Data Centres Limited,111405,"30,882.58", Cloud Services,SME,Programme
UK Statistics Authority,Office for National Statistics,09-Nov-18,IT Contractual Services,Digital Services and Technology,Methods Business & Digital Technology Ltd,111411,"60,570.00", Information Management Services,Large,Programme
UK Statistics Authority,Office for National Statistics,09-Nov-18,IT Contractual Services,Digital Services and Technology,Methods Business & Digital Technology Ltd,111411,"38,700.00", Information Management Services,Large,Programme
UK Statistics Authority,Office for National Statistics,09-Nov-18,IT Contractual Services,Digital Services and Technology,Methods Business & Digital Technology Ltd,111411,"10,800.00", Information Management Services,Large,Programme
UK Statistics Authority,Office for National Statistics,09-Nov-18,IT Contractual Services,Digital Services and Technology,Methods Business & Digital Technology Ltd,111411,"18,900.00", Information Management Services,Large,Programme
UK Statistics Authority,Office for National Statistics,09-Nov-18,IT Contractual Services,Digital Services and Technology,Methods Business & Digital Technology Ltd,111411,"35,310.00", Information Management Services,Large,Programme
UK Statistics Authority,Office for National Statistics,09-Nov-18,IT Contractual Services,Policy and Communication,Methods Business & Digital Technology Ltd,111411,"26,550.00", Information Management Services,Large,Programme
UK Statistics Authority,Office for National Statistics,09-Nov-18,Capital Major Works > 25K,People and Business Services,Paramount Office Interiors Ltd,111417,"67,456.91", Major Works Titchfield ,SME,Programme
UK Statistics Authority,Office for National Statistics,09-Nov-18,Major Works Over 25K,People and Business Services,Paramount Office Interiors Ltd,111417,"93,154.77", Major Works Titchfield ,SME,Programme
UK Statistics Authority,Office for National Statistics,09-Nov-18,Procurement Cards,"Finance, Planning and Performance",Royal Bank of Scotland,111419,"44,209.21", Multiple Procurement Card Purchases  ,Large,Programme
UK Statistics Authority,Office for National Statistics,09-Nov-18,Stationery,"Finance, Planning and Performance",Royal Bank of Scotland,111419,"9,225.54", Multiple Procurement Card Purchases  ,Large,Programme
UK Statistics Authority,Office for National Statistics,09-Nov-18,Travel and Subsistence,"Finance, Planning and Performance",Royal Bank of Scotland,111419,"1,735.97", Multiple Procurement Card Purchases  ,Large,Programme
UK Statistics Authority,Office for National Statistics,09-Nov-18,ICT Outsourcing and Maintenance/Support,Digital Services and Technology,Computacenter (UK) Limited,111420,"3,042.65", Software License Upgrades,Large,Programme
UK Statistics Authority,Office for National Statistics,09-Nov-18,Software Pool 4 Year,Digital Services and Technology,Computacenter (UK) Limited,111420,"29,433.14", Software License Upgrades,Large,Programme
UK Statistics Authority,Office for National Statistics,09-Nov-18,Childcare Services,"Finance, Planning and Performance",Computershare Voucher Services,111421,"43,340.37", Childcare Vouchers ,Large,Programme
UK Statistics Authority,Office for National Statistics,13-Nov-18,Contractors,"Methods, Data and Research",Concept Information Technology Ltd T/A Concept Resourcing,111776,"1,976.45", Information Management Services,Large,Programme
UK Statistics Authority,Office for National Statistics,13-Nov-18,Short-Term Contract and Agency Staff - Full Cost,Economic Statistics Transformation,Concept Information Technology Ltd T/A Concept Resourcing,111776,"2,572.42", Information Management Services,Large,Programme
UK Statistics Authority,Office for National Statistics,13-Nov-18,Short-Term Contract and Agency Staff - Full Cost,Economic Statistics Transformation,Concept Information Technology Ltd T/A Concept Resourcing,111776,"14,754.62", Information Management Services,Large,Programme
UK Statistics Authority,Office for National Statistics,13-Nov-18,Short-Term Contract and Agency Staff - Full Cost,"Methods, Data and Research",Concept Information Technology Ltd T/A Concept Resourcing,111776,"3,530.11", Information Management Services,Large,Programme
UK Statistics Authority,Office for National Statistics,13-Nov-18,Short-Term Contract and Agency Staff - Full Cost,"Methods, Data and Research",Concept Information Technology Ltd T/A Concept Resourcing,111776,"4,235.28", Information Management Services,Large,Programme
UK Statistics Authority,Office for National Statistics,13-Nov-18,Short-Term Contract and Agency Staff - Full Cost,"Methods, Data and Research",Concept Information Technology Ltd T/A Concept Resourcing,111776,"3,965.81", Information Management Services,Large,Programme
UK Statistics Authority,Office for National Statistics,13-Nov-18,Short-Term Contract and Agency Staff - Full Cost,National Accounts and Economic Statistics,Concept Information Technology Ltd T/A Concept Resourcing,111776,"3,590.66", Information Management Services,Large,Programme
UK Statistics Authority,Office for National Statistics,13-Nov-18,Short-Term Contract and Agency Staff - Full Cost,National Accounts and Economic Statistics,Concept Information Technology Ltd T/A Concept Resourcing,111776,"3,638.09", Information Management Services,Large,Programme
UK Statistics Authority,Office for National Statistics,13-Nov-18,Short-Term Contract and Agency Staff - Full Cost,National Accounts and Economic Statistics,Concept Information Technology Ltd T/A Concept Resourcing,111776,"7,186.15", Information Management Services,Large,Programme
UK Statistics Authority,Office for National Statistics,13-Nov-18,Short-Term Contract and Agency Staff - Full Cost,National Accounts and Economic Statistics,Concept Information Technology Ltd T/A Concept Resourcing,111776,"4,300.76", Information Management Services,Large,Programme
UK Statistics Authority,Office for National Statistics,13-Nov-18,Short-Term Contract and Agency Staff - Full Cost,National Accounts and Economic Statistics,Concept Information Technology Ltd T/A Concept Resourcing,111776,991.45, Information Management Services,Large,Programme
UK Statistics Authority,Office for National Statistics,13-Nov-18,Short-Term Contract and Agency Staff - Full Cost,National Accounts and Economic Statistics,Concept Information Technology Ltd T/A Concept Resourcing,111776,"3,965.81", Information Management Services,Large,Programme
UK Statistics Authority,Office for National Statistics,13-Nov-18,Short-Term Contract and Agency Staff - Full Cost,Public Policy Analysis,Concept Information Technology Ltd T/A Concept Resourcing,111776,"3,966.07", Information Management Services,Large,Programme
UK Statistics Authority,Office for National Statistics,13-Nov-18,Short-Term Contract and Agency Staff - Full Cost,"Public, Population and Policy - Transformation",Concept Information Technology Ltd T/A Concept Resourcing,111776,"1,371.74", Information Management Services,Large,Programme
UK Statistics Authority,Office for National Statistics,13-Nov-18,Telecommunications,Digital Services and Technology,BT Global Services,111781,"49,105.91", Information Management Services ,Large,Programme
UK Statistics Authority,Office for National Statistics,13-Nov-18,IT Purchases > 2K,Digital Services and Technology,Centerprise International Ltd,111785,"160,128.00", Computer Hardware,Large,Programme
UK Statistics Authority,Office for National Statistics,13-Nov-18,IT Contractual Services,Digital Services and Technology,Methods Business & Digital Technology Ltd,111788,"33,300.00", Information Management Services,Large,Programme
UK Statistics Authority,Office for National Statistics,13-Nov-18,IT Contractual Services,Digital Services and Technology,Methods Business & Digital Technology Ltd,111788,"22,680.00", Information Management Services,Large,Programme
UK Statistics Authority,Office for National Statistics,13-Nov-18,Contractors,"Methods, Data and Research",Malikshaw Interim & Executive,111798,"12,966.48", Information Management Services ,SME,Programme
UK Statistics Authority,Office for National Statistics,13-Nov-18,Contractors,"Public, Population and Policy - Transformation",Malikshaw Interim & Executive,111798,"15,391.45", Information Management Services ,SME,Programme
UK Statistics Authority,Office for National Statistics,14-Nov-18,Facilities Management Contract Payments,"Finance, Planning and Performance",Vinci Construction UK Limited,111805,"133,980.29", Facility Management Services,Large,Programme
UK Statistics Authority,Office for National Statistics,14-Nov-18,Travel and Subsistence,"Finance, Planning and Performance",Corporate Travel Management ,111808,"61,096.18", Travel and Accommodation Booking Service ,SME,Programme
UK Statistics Authority,Office for National Statistics,15-Nov-18,Private Medical Insurance,People and Business Services,Aviva,112309,"32,200.72", Insurance Policy Covering TUPE Obligations,Large,Programme
UK Statistics Authority,Office for National Statistics,19-Nov-18,Surveys,"Public, Population and Policy - Transformation",BMG Research Ltd,112515,"48,152.40", Statistical Services,SME,Programme
UK Statistics Authority,Office for National Statistics,19-Nov-18,Electricity,People and Business Services,EDF Energy,30001121,"54,854.47", Electricity Charges Titchfield,Large,Programme
UK Statistics Authority,Office for National Statistics,20-Nov-18,ICT Software,Digital Services and Technology,SCC,112832,"177,347.88", Information Management Services,Large,Programme
UK Statistics Authority,Office for National Statistics,20-Nov-18,IT Purchases > 2K,Digital Services and Technology,SCC,112832,"62,056.20", Information Management Services,Large,Programme
UK Statistics Authority,Office for National Statistics,20-Nov-18,Legal Costs,Policy and Communication,Government Legal,30001123,"49,500.00", Legal Costs,SME,Programme
UK Statistics Authority,Office for National Statistics,21-Nov-18,Travel and Subsistence,"Finance, Planning and Performance",Corporate Travel Management ,112841,"82,484.89", Travel and Accommodation Booking Service ,SME,Programme
UK Statistics Authority,Office for National Statistics,21-Nov-18,Travel and Subsistence,"Finance, Planning and Performance",Calder World of Travel,112842,"85,615.00", Travel and Accommodation Booking Service ,SME,Programme
UK Statistics Authority,Office for National Statistics,21-Nov-18,Surveys,"Public, Population and Policy - Transformation",BMG Research Ltd,112843,"48,152.40", 2021 Census Statistical Services ,SME,Programme
UK Statistics Authority,Office for National Statistics,22-Nov-18,ICT Outsourcing and Maintenance/Support,Digital Services and Technology,SCC,113222,"22,377.88", Information Management Services,Large,Programme
UK Statistics Authority,Office for National Statistics,22-Nov-18,ICT Software,Digital Services and Technology,SCC,113222,"80,302.92", Information Management Services,Large,Programme
UK Statistics Authority,Office for National Statistics,22-Nov-18,IT Purchases > 2K,Data Science Campus,SCC,113222,"14,031.35", Information Management Services,Large,Programme
UK Statistics Authority,Office for National Statistics,22-Nov-18,Postage,Data Science Campus,SCC,113222,"1,107.00", Information Management Services,Large,Programme
UK Statistics Authority,Office for National Statistics,22-Nov-18,Accommodation and Building Management,People and Business Services,James Andrew RSW Ltd,113225,"167,947.48", Drummond Gate Rent,SME,Programme
UK Statistics Authority,Office for National Statistics,26-Nov-18,IT Contractual Services,Digital Services and Technology,QA Ltd,113505,"69,180.00", Information Management Services,Large,Programme
UK Statistics Authority,Office for National Statistics,27-Nov-18,Consultancy,"Public, Population and Policy - Transformation",Deloitte,113844,"156,940.80", Information Management Services,Large,Programme
UK Statistics Authority,Office for National Statistics,28-Nov-18,Contractors,"Methods, Data and Research",Malikshaw Interim & Executive,113868,"25,932.96", Information Management Services ,SME,Programme
UK Statistics Authority,Office for National Statistics,28-Nov-18,Incentive Payments,"Public, Population and Policy - Operations",Park Retail Ltd,113899,"1,583.09", Social Surveys Incentive Vouchers,Large,Programme
UK Statistics Authority,Office for National Statistics,28-Nov-18,Incentive Payments,"Public, Population and Policy - Operations",Park Retail Ltd,113899,"22,285.57", Social Surveys Incentive Vouchers,Large,Programme
UK Statistics Authority,Office for National Statistics,28-Nov-18,Incentive Payments,"Public, Population and Policy - Operations",Park Retail Ltd,113899,"1,082.51", Social Surveys Incentive Vouchers,Large,Programme
UK Statistics Authority,Office for National Statistics,28-Nov-18,Performance Related Pay Voucher Payments,ONS Corporate Funds,Park Retail Ltd,113899,693.75, Social Surveys Incentive Vouchers,Large,Programme
UK Statistics Authority,Office for National Statistics,28-Nov-18,Travel and Subsistence,"Finance, Planning and Performance",Corporate Travel Management ,113919,"78,376.24", Travel and Accommodation Booking Service ,SME,Programme
UK Statistics Authority,Office for National Statistics,28-Nov-18,Hosting,Digital Services and Technology,Equiniti Limited,113920,"47,212.80", Information Management Services,Large,Programme
UK Statistics Authority,Office for National Statistics,28-Nov-18,Contractors,Digital Services and Technology,LA International,113934,"13,453.44", Information Management Services,SME,Programme
UK Statistics Authority,Office for National Statistics,28-Nov-18,Contractors,"Methods, Data and Research",LA International,113934,"3,748.50", Information Management Services,SME,Programme
UK Statistics Authority,Office for National Statistics,28-Nov-18,Contractors,National Accounts and Economic Statistics,LA International,113934,"3,332.02", Information Management Services,SME,Programme
UK Statistics Authority,Office for National Statistics,28-Nov-18,Contractors,Policy and Communication,LA International,113934,"5,081.49", Information Management Services,SME,Programme
UK Statistics Authority,Office for National Statistics,28-Nov-18,Contractors,Digital Services and Technology,Parity Resources Limited,113945,"14,097.60", Information Management Services,Large,Programme
UK Statistics Authority,Office for National Statistics,28-Nov-18,Contractors,Digital Services and Technology,Parity Resources Limited,113945,"12,816.00", Information Management Services,Large,Programme
UK Statistics Authority,Office for National Statistics,28-Nov-18,Contractors,Digital Services and Technology,Parity Resources Limited,113945,"41,779.68", Information Management Services,Large,Programme
UK Statistics Authority,Office for National Statistics,28-Nov-18,Contractors,Digital Services and Technology,Parity Resources Limited,113945,"10,669.32", Information Management Services,Large,Programme
UK Statistics Authority,Office for National Statistics,28-Nov-18,Contractors,Economic Statistics Transformation,Parity Resources Limited,113945,"7,878.55", Information Management Services,Large,Programme
UK Statistics Authority,Office for National Statistics,28-Nov-18,Contractors,"Finance, Planning and Performance",Parity Resources Limited,113945,51.24, Information Management Services,Large,Programme
UK Statistics Authority,Office for National Statistics,28-Nov-18,Contractors,National Accounts and Economic Statistics,Parity Resources Limited,113945,"8,971.20", Information Management Services,Large,Programme
UK Statistics Authority,Office for National Statistics,28-Nov-18,Contractors,Policy and Communication,Parity Resources Limited,113945,"9,227.52", Information Management Services,Large,Programme
UK Statistics Authority,Office for National Statistics,28-Nov-18,Contractors,"Public, Population and Policy - Operations",Parity Resources Limited,113945,"8,650.80", Information Management Services,Large,Programme
UK Statistics Authority,Office for National Statistics,28-Nov-18,Contractors,"Public, Population and Policy - Transformation",Parity Resources Limited,113945,"23,389.20", Information Management Services,Large,Programme
UK Statistics Authority,Office for National Statistics,28-Nov-18,Contractors,"Public, Population and Policy - Transformation",Parity Resources Limited,113945,"9,520.74", Information Management Services,Large,Programme
UK Statistics Authority,Office for National Statistics,28-Nov-18,Contractors,"Public, Population and Policy - Transformation",Parity Resources Limited,113945,"18,519.12", Information Management Services,Large,Programme
UK Statistics Authority,Office for National Statistics,28-Nov-18,ICT Outsourcing and Maintenance/Support,"Methods, Data and Research",Parity Resources Limited,113945,"10,573.20", Information Management Services,Large,Programme
UK Statistics Authority,Office for National Statistics,28-Nov-18,ICT Outsourcing and Maintenance/Support,Policy and Communication,Parity Resources Limited,113945,"8,167.50", Information Management Services,Large,Programme
UK Statistics Authority,Office for National Statistics,28-Nov-18,IT Contractual Services,Digital Services and Technology,Parity Resources Limited,113945,"16,224.00", Information Management Services,Large,Programme
UK Statistics Authority,Office for National Statistics,28-Nov-18,Short-Term Contract and Agency Staff - Full Cost,National Accounts and Economic Statistics,Parity Resources Limited,113945,"2,315.39", Information Management Services,Large,Programme
UK Statistics Authority,Office for National Statistics,28-Nov-18,Short-Term Contract and Agency Staff - Full Cost,National Accounts and Economic Statistics,Parity Resources Limited,113945,"3,035.18", Information Management Services,Large,Programme
UK Statistics Authority,Office for National Statistics,28-Nov-18,Short-Term Contract and Agency Staff - Full Cost,Policy and Communication,Parity Resources Limited,113945,126.84, Information Management Services,Large,Programme
UK Statistics Authority,Office for National Statistics,28-Nov-18,Short-Term Contract and Agency Staff - Full Cost,"Public, Population and Policy - Operations",Parity Resources Limited,113945,"6,285.21", Information Management Services,Large,Programme
UK Statistics Authority,Office for National Statistics,28-Nov-18,Short-Term Contract and Agency Staff - Full Cost,"Public, Population and Policy - Transformation",Parity Resources Limited,113945,"3,015.94", Information Management Services,Large,Programme
